bitfinex-derivatives/quotes_ETHF0:USTF0_20250929
["timestamp","ask_amount","ask_price","bid_price","bid_amount"]
[1759171004872,0.00228602,4153.8,4153.7,2.47827453]
[1759171006481,0.00228602,4153.8,4153.7,2.72227453]
[1759171007069,0.3222,4154.6,4154.5,0.43298]
[1759171007385,0.749,4154.8,4154.7,1.18275]
[1759171007882,1.18196,4154.8,4154.7,1.18275]
[1759171008081,1.183961,4154.8,4154.7,1.18275]
[1759171009476,0.002001,4154.8,4154.7,1.18275]
[1759171009677,0.2105,4155.6,4155.0,1.08233]
[1759171009880,0.85967,4155.6,4155.5,0.7498]
[1759171010084,1.18187,4155.6,4155.5,1.18268]
[1759171010984,1.18413345,4155.6,4155.5,1.18268]
[1759171012177,1.18413345,4155.6,4155.5,0.7498]
[1759171014490,1.19443345,4155.6,4155.5,0.7498]
[1759171015488,1.1853,4155.3,4155.2,0.97571]
[1759171016075,0.13,4155.0,4154.8,0.2223]
[1759171016275,0.13,4155.0,4154.7,0.5428]
[1759171016276,1.18535,4154.8,4154.7,0.5428]
[1759171016480,1.18535,4154.8,4154.7,0.7621]
[1759171016793,1.18535,4154.8,4154.7,1.19506]
[1759171017677,0.2191,4154.8,4154.7,1.19506]
[1759171017978,0.43295,4154.9,4154.8,1.19505]
[1759171018189,0.65203,4155.1,4155.0,1.32843]
[1759171018484,0.43291,4155.2,4155.1,0.43292]
[1759171018689,0.2191,4155.3,4155.2,1.19501]
[1759171018987,0.87223345,4155.6,4155.5,1.32838]
[1759171019182,1.18753345,4155.6,4155.5,1.19498]
[1759171019786,0.22136345,4155.6,4155.5,1.32838]
[1759171019986,0.65423345,4155.6,4155.5,1.32838]
[1759171020482,0.22136345,4155.6,4155.5,1.32838]
[1759171020993,0.00226345,4155.6,4155.5,1.32838]
[1759171022288,0.43513345,4155.6,4155.5,1.32838]
[1759171022493,0.22136345,4155.6,4155.5,1.32838]
[1759171023087,0.00226345,4155.6,4155.5,1.32838]
[1759171023497,0.22136345,4155.6,4155.5,1.32838]
[1759171024092,0.00226345,4155.6,4155.5,1.32838]
[1759171026999,0.53666345,4155.6,4155.5,1.32838]
[1759171027396,0.22136345,4155.6,4155.5,1.32838]
[1759171028103,0.96953345,4155.6,4155.5,1.32838]
[1759171028788,1.18753345,4155.6,4155.5,1.32838]
[1759171029303,0.86999,4155.4,4155.3,0.7774]
[1759171029502,1.18529,4155.4,4155.3,0.9997]
[1759171029896,0.7524,4155.4,4155.3,1.219]
[1759171031305,0.7524,4155.4,4155.3,1.195]
[1759171032497,1.18529,4155.4,4155.3,1.195]
[1759171032703,0.7524,4155.4,4155.3,1.195]
[1759171032898,1.18529,4155.4,4155.3,1.195]
[1759171033296,0.7524,4155.4,4155.3,1.195]
[1759171033897,1.18529,4155.4,4155.3,1.195]
[1759171034097,1.18529,4155.4,4155.3,0.7621]
[1759171034294,1.18529,4155.4,4155.3,1.195]
[1759171034695,0.00226345,4155.6,4155.1,0.024]
[1759171034696,0.00226345,4155.6,4155.5,0.65358]
[1759171034901,0.21686345,4155.6,4155.5,1.32478]
[1759171035598,0.64973345,4155.6,4155.5,1.32478]
[1759171036207,0.00226345,4155.6,4155.5,1.32478]
[1759171036396,0.43513345,4155.6,4155.5,1.32478]
[1759171036602,0.00226345,4155.6,4155.5,1.32478]
[1759171036801,0.21686345,4155.6,4155.5,1.32478]
[1759171039401,1.18423345,4155.6,4155.5,1.32478]
[1759171039608,1.18423345,4155.6,4155.5,1.19488]
[1759171041820,1.18423345,4155.6,4155.5,1.32478]
[1759171042308,0.44226345,4155.6,4155.5,1.32478]
[1759171042512,0.00226345,4155.6,4155.5,1.32478]
[1759171042713,0.00226345,4155.6,4155.5,2.86378299]
[1759171047815,0.74736345,4155.6,4155.5,1.56878]
[1759171048213,0.43756345,4155.6,4155.5,2.86378299]
[1759171048616,0.87043345,4155.6,4155.5,2.86378299]
[1759171048817,1.18023345,4155.6,4155.5,1.006]
[1759171049015,1.18023345,4155.6,4155.5,1.43888]
[1759171050817,1.18023345,4155.6,4155.5,1.19488]
[1759171051420,1.30918,4155.5,4155.4,1.29500299]
[1759171051621,1.30918,4155.5,4155.4,0.43289]
[1759171051919,1.30918,4155.5,4155.4,0.95579]
[1759171052417,1.17798,4155.5,4155.4,1.16889]
[1759171052818,0.7451,4155.5,4155.4,1.16889]
[1759171053621,1.17798,4155.5,4155.4,1.16889]
[1759171055523,1.17798,4155.5,4155.4,2.46389299]
[1759171056022,0.00226345,4155.6,4155.5,0.99048]
[1759171056222,0.00226345,4155.6,4155.5,1.30088]
[1759171056420,0.43281,4156.2,4155.6,1.08216]
[1759171056613,0.43281,4156.2,4156.1,0.736]
[1759171056614,1.17791,4156.2,4156.1,0.736]
[1759171056820,1.23861778,4156.2,4156.1,1.16882]
[1759171057419,0.49523439,4156.2,4156.1,1.17140125]
[1759171057819,0.00171661,4156.2,4156.1,1.17140125]
[1759171058517,0.43452661,4156.2,4156.1,1.17140125]
[1759171058821,0.66102661,4156.2,4156.1,1.17140125]
[1759171059327,0.22821661,4156.2,4156.1,1.17140125]
[1759171060525,0.00171661,4156.2,4156.1,1.17140125]
[1759171065133,0.00171661,4156.2,4156.1,1.41540125]
[1759171067625,0.00171661,4156.2,4156.1,0.98258125]
[1759171067829,0.43452661,4156.2,4156.1,1.41540125]
[1759171068238,0.00171661,4156.2,4156.1,1.41540125]
[1759171069037,0.22821661,4156.2,4156.1,1.41540125]
[1759171069234,0.00171661,4156.2,4156.1,1.41540125]
[1759171073938,0.43452661,4156.2,4156.1,1.41540125]
[1759171074237,0.00171661,4156.2,4156.1,1.41540125]
[1759171075540,0.00171661,4156.2,4156.1,2.71360492]
[1759171076735,0.00171661,4156.2,4156.1,1.41540125]
[1759171077638,0.00171661,4156.2,4156.1,2.46718644]
[1759171077835,1.21052661,4156.2,4156.1,2.46718644]
[1759171078035,1.21052661,4156.2,4156.1,0.73858125]
[1759171078737,1.21052661,4156.2,4156.1,1.17140125]
[1759171081042,0.77771661,4156.2,4156.1,1.17140125]
[1759171081445,0.00171661,4156.2,4156.1,1.17140125]
[1759171081741,0.00171661,4156.2,4156.1,7.46718644]
[1759171082043,0.00171661,4156.2,4156.1,6.17140125]
[1759171082743,0.00171661,4156.2,4156.1,6.41540125]
[1759171086638,0.00171661,4156.2,4156.1,1.41540125]
[1759171090749,0.00171661,4156.2,4156.1,1.17140125]
[1759171091152,0.00171661,4156.2,4156.1,1.41540125]
[1759171093139,0.77771661,4156.2,4156.1,1.17140125]
[1759171093343,0.00171661,4156.2,4156.1,1.41540125]
[1759171095443,0.76771661,4156.2,4156.1,1.41540125]
[1759171095648,1.20052661,4156.2,4156.1,1.41540125]
[1759171095947,1.20052661,4156.2,4156.1,2.71274549]
[1759171096450,1.20052661,4156.2,4156.1,0.95830125]
[1759171096747,0.76771661,4156.2,4156.1,0.95830125]
[1759171097146,0.76771661,4156.2,4156.1,1.16680125]
[1759171097348,1.20052661,4156.2,4156.1,1.16680125]
[1759171100149,1.20052661,4156.2,4156.1,0.00258125]
[1759171100448,1.20052661,4156.2,4156.1,0.43540125]
[1759171100647,1.20052661,4156.2,4156.1,0.98820125]
[1759171101543,1.20052661,4156.2,4156.1,1.19670125]
[1759171102345,6.20052661,4156.2,4156.1,0.00258125]
[1759171103650,6.69420176,4156.2,4156.1,0.00258125]
[1759171104044,6.03439176,4156.2,4155.3,1.73024424]
[1759171104245,6.03439176,4156.2,4155.3,0.4329]
[1759171104246,0.7669,4155.4,4155.3,0.4329]
[1759171104443,0.7669,4155.4,4155.3,0.9845]
[1759171104952,1.19979,4155.4,4155.3,0.9845]
[1759171105146,1.19979,4155.4,4155.3,0.98718942]
[1759171105351,0.7669,4155.4,4155.3,1.20018942]
[1759171105550,0.229,4155.4,4155.3,1.20018942]
[1759171107642,0.75416,4155.7,4155.6,0.43287]
[1759171107850,0.98316,4155.7,4155.6,1.19747]
[1759171108057,1.19976,4155.7,4155.6,1.19747]
[1759171108449,0.229,4156.0,4155.9,0.85674]
[1759171108747,1.19973,4156.0,4155.9,0.7646]
[1759171108955,1.19976,4155.7,4155.6,0.7646]
[1759171109146,0.7669,4155.7,4155.6,1.19747]
[1759171109953,1.19976,4155.7,4155.6,1.19747]
[1759171112160,1.19976,4155.7,4155.6,0.5516]
[1759171112465,1.19976,4155.7,4155.6,0.98447]
[1759171113262,1.19976,4155.7,4155.6,0.5516]
[1759171114165,1.19976,4155.7,4155.6,0.98447]
[1759171114457,1.19979,4155.4,4155.3,0.98718942]
[1759171115561,1.19979,4155.4,4155.3,0.55428942]
[1759171115765,1.19979,4155.4,4155.3,0.00268942]
[1759171116559,0.7669,4155.4,4155.3,1.20018942]
[1759171116763,1.19979,4155.4,4155.3,1.20018942]
[1759171117670,1.19979,4155.4,4155.3,0.00268942]
[1759171118568,1.19979,4155.4,4155.3,0.34338942]
[1759171118867,1.19979,4155.4,4155.3,0.00268942]
[1759171119075,6.19979,4155.4,4155.3,0.00268942]
[1759171119259,6.69252963,4155.4,4155.3,0.00268942]
[1759171119461,1.69252963,4155.4,4155.3,0.00268942]
[1759171120172,42.49252963,4155.4,4155.3,0.00268942]
[1759171121674,42.73652963,4155.4,4155.3,0.00268942]
[1759171121871,1.93652963,4155.4,4155.3,0.00268942]
[1759171126370,6.93652963,4155.4,4155.3,0.00268942]
[1759171126571,1.19987,4154.6,4154.5,0.024]
[1759171126770,1.44387,4154.6,4154.5,0.024]
[1759171126967,1.19993,4154.1,4154.0,0.7646]
[1759171127471,1.19993,4154.1,4154.0,1.19998097]
[1759171128263,0.244,4154.2,4154.1,0.85693]
[1759171128470,1.44392,4154.2,4154.1,0.7646]
[1759171129271,1.44392,4154.2,4154.1,0.2109]
[1759171129476,1.19993,4154.1,4154.0,1.33388097]
[1759171130878,1.19993,4154.1,4154.0,0.90084097]
[1759171131283,1.19993,4154.1,4154.0,0.00234097]
[1759171135288,1.19993,4154.1,4154.0,0.32014097]
[1759171135579,1.19993,4154.1,4154.0,0.54424097]
[1759171135792,1.19993,4154.1,4154.0,0.75674097]
[1759171135793,1.44393,4154.1,4154.0,0.75674097]
[1759171136085,1.44393,4154.1,4154.0,0.88184097]
[1759171136573,1.44393,4154.1,4154.0,0.75674097]
[1759171139480,0.43302,4154.2,4154.1,0.43302]
[1759171139788,0.43302,4154.2,4154.1,1.18742]
[1759171140084,0.64382,4154.2,4154.1,1.18742]
[1759171141076,0.2108,4154.2,4154.1,1.18742]
[1759171141282,0.67699,4154.5,4154.4,1.1874]
[1759171141582,0.244,4154.5,4154.4,1.1874]
[1759171141784,0.67699,4154.5,4154.4,1.1874]
[1759171142086,0.43299,4154.5,4154.4,1.1874]
[1759171143289,0.43297,4154.7,4154.6,1.18737]
[1759171143489,0.43294,4154.9,4154.8,1.18734]
[1759171143792,0.64374,4154.9,4154.8,0.7544]
[1759171144082,0.64374,4154.9,4154.8,1.18735]
[1759171144388,0.64374,4154.9,4154.8,0.7544]
[1759171144582,0.96424,4154.9,4154.8,0.7544]
[1759171144984,0.96424,4154.9,4154.8,1.18735]
[1759171145276,1.18284,4154.9,4154.8,1.18735]
[1759171145477,1.18284,4154.9,4154.8,0.7544]
[1759171146087,1.18284,4154.9,4154.8,0.2241]
[1759171146290,0.127,4155.0,4154.5,0.55808]
[1759171146291,1.18287,4154.6,4154.5,0.5419]
[1759171146481,0.8624,4154.4,4154.3,0.2241]
[1759171146683,1.1829,4154.4,4154.3,0.97491]
[1759171146879,0.86243,4154.1,4154.0,0.75674097]
[1759171147186,0.7499,4154.1,4154.0,0.97728097]
[1759171147986,0.7499,4154.1,4154.0,1.18978097]
[1759171148188,0.244,4154.7,4154.0,1.18978097]
[1759171148189,0.7499,4154.9,4154.8,0.2241]
[1759171148389,1.92088552,4154.9,4154.8,0.5419]
[1759171148590,0.73804552,4154.9,4154.5,0.5419]
[1759171148894,1.18287,4154.6,4154.5,0.5419]
[1759171150392,1.18287,4154.6,4154.5,0.97489]
[1759171150592,1.18287,4154.6,4154.5,1.18739]
[1759171150888,1.18283,4155.0,4154.9,0.4366]
[1759171151092,1.45833939,4155.0,4154.9,1.18734]
[1759171151294,1.45833939,4155.0,4154.9,0.7544]
[1759171151789,1.67693939,4155.0,4154.9,0.7544]
[1759171152994,0.43292,4155.1,4155.0,0.99463]
[1759171153193,0.43292,4155.1,4155.0,1.31243]
[1759171153395,0.2108,4155.2,4155.1,0.7544]
[1759171154395,0.3205,4155.5,4155.0,0.55803]
[1759171154396,0.5328,4155.5,4155.4,0.7691]
[1759171154697,1.68591955,4155.5,4155.4,0.7691]
[1759171155386,1.20212,4155.1,4155.0,0.7691]
[1759171156297,1.20212,4155.1,4155.0,0.8969]
[1759171156699,0.7692,4155.1,4155.0,0.8969]
[1759171156898,1.20209,4155.4,4155.3,0.7691]
[1759171158100,0.2123,4155.4,4155.3,0.7691]
[1759171158489,0.6477143,4155.7,4155.6,0.7691]
[1759171158891,0.00171661,4156.2,4156.1,0.7691]
[1759171159485,0.33251661,4156.2,4155.8,0.3371]
[1759171159693,0.4384,4155.9,4155.5,0.3371]
[1759171159899,0.7692,4155.6,4155.5,0.3371]
[1759171160095,0.7692,4155.6,4155.5,0.5551]
[1759171160900,0.7692,4155.6,4155.5,0.7691]
[1759171165201,0.7692,4155.6,4155.1,0.332]
[1759171165398,1.18871,4155.2,4155.1,0.5517]
[1759171165602,1.00533,4155.0,4154.9,0.65264]
[1759171165806,0.8895,4155.0,4154.9,0.98464]
[1759171166012,0.3171,4155.9,4155.2,0.332]
[1759171166206,0.215,4155.3,4155.2,0.7679]
[1759171166714,0.6479,4155.3,4155.2,1.20081]
[1759171167107,0.965,4155.3,4155.2,1.20081]
[1759171167310,0.3171,4155.7,4155.2,0.7679]
[1759171167507,0.215,4155.6,4155.5,0.8984]
[1759171167813,0.64787,4155.6,4155.5,1.33128]
[1759171168014,0.215,4155.6,4155.5,1.33128]
[1759171168413,0.64787,4155.6,4155.5,1.33128]
[1759171168917,0.215,4155.6,4155.5,1.33128]
[1759171170015,0.43286,4155.7,4155.6,0.86877]
[1759171170220,0.64786,4155.7,4155.6,1.20077]
[1759171170418,0.96496,4155.7,4155.6,1.20077]
[1759171171017,0.215,4155.7,4155.6,1.20077]
[1759171171216,0.215,4155.9,4155.8,1.20075]
[1759171171707,0.64784,4155.9,4155.8,1.20075]
[1759171172117,0.96494,4155.9,4155.8,1.20075]
[1759171172307,1.18864,4155.9,4155.8,1.20075]
[1759171172515,1.18864,4155.9,4155.8,0.7679]
[1759171173417,1.18864,4155.9,4155.8,1.20075]
[1759171173920,1.18864,4155.9,4155.8,0.7679]
[1759171174114,1.18864,4155.9,4155.8,0.5517]
[1759171177021,1.18864,4155.9,4155.8,0.98455]
[1759171177219,0.43283,4156.0,4155.9,0.43283]
[1759171177423,0.96493,4156.0,4155.9,1.20073]
[1759171177615,1.18863,4156.0,4155.9,1.20073]
[1759171178422,1.18863,4156.0,4155.9,0.7679]
[1759171178913,1.18863,4156.0,4155.9,1.20074]
[1759171179517,1.18863,4156.0,4155.9,0.7679]
[1759171180020,1.18863,4156.0,4155.9,1.20074]
[1759171180320,1.18863,4156.0,4155.9,0.7679]
[1759171181113,1.18863,4156.0,4155.9,1.20074]
[1759171181316,1.18863,4156.0,4155.9,0.7679]
[1759171182319,1.18863,4156.0,4155.9,1.20074]
[1759171182521,1.18863,4156.0,4155.9,0.7679]
[1759171184219,1.18863,4156.0,4155.9,1.20074]
[1759171185121,1.18863,4156.0,4155.9,0.7679]
[1759171185824,1.18867,4155.6,4155.5,1.33128]
[1759171186822,0.7558,4155.6,4155.5,1.33128]
[1759171187025,0.43284,4155.9,4155.8,1.20074]
[1759171187527,0.96494,4155.9,4155.8,1.20074]
[1759171187722,1.18864,4155.9,4155.8,1.20074]
[1759171189426,1.18864,4155.9,4155.8,0.7679]
[1759171189628,1.68388124,4155.9,4155.8,0.7679]
[1759171190127,1.68388124,4155.9,4155.8,0.5517]
[1759171190326,1.68388124,4155.9,4155.8,0.2197]
[1759171190920,1.68386273,4155.9,4155.8,0.2197]
[1759171191120,1.68386273,4155.9,4155.8,0.5517]
[1759171192636,1.68386273,4155.9,4155.8,0.2197]
[1759171194930,0.4435,4155.7,4155.4,1.60664424]
[1759171195130,0.8764,4155.3,4155.2,0.236]
[1759171195435,1.2035,4155.3,4155.2,0.7599]
[1759171195841,0.7706,4155.3,4155.2,1.19281]
[1759171196231,0.224,4155.3,4155.2,1.19281]
[1759171197031,0.224,4156.0,4155.9,0.7359]
[1759171197330,1.26585583,4156.0,4155.9,0.7359]
[1759171197534,1.69868583,4156.0,4155.9,0.7359]
[1759171197724,1.82978583,4156.0,4155.9,0.5213]
[1759171197928,0.43286,4155.7,4155.6,0.3093]
[1759171198124,0.71933511,4155.7,4155.6,1.16877]
[1759171198337,0.49533511,4155.7,4155.6,1.16877]
[1759171198538,0.92819511,4155.7,4155.6,1.16877]
[1759171199436,1.69879511,4155.7,4155.6,0.7359]
[1759171200738,1.26593511,4155.7,4155.3,1.73024424]
[1759171200938,1.20349,4155.4,4155.3,0.5213]
[1759171201245,1.20349,4155.4,4155.3,1.1688]
[1759171201543,0.98396,4155.8,4155.7,0.7359]
[1759171201738,1.94182868,4155.8,4155.7,0.7359]
[1759171202841,1.20349,4155.4,4155.3,2.03324424]
[1759171203239,0.224,4155.7,4155.6,0.43287]
[1759171203442,0.43283,4156.1,4156.0,0.43283]
[1759171203743,0.87802661,4156.2,4156.1,0.85942]
[1759171203949,1.37338105,4156.2,4156.1,1.16872]
[1759171204130,1.70048105,4156.2,4156.1,1.16872]
[1759171204534,1.70048105,4156.2,4156.1,0.7359]
[1759171207443,1.20345,4155.8,4155.7,0.5213]
[1759171207746,1.20347,4155.6,4155.5,2.25152424]
[1759171208044,1.20347,4155.6,4155.5,1.81864424]
[1759171208348,1.20347,4155.6,4155.5,0.95418]
[1759171209041,0.89985,4155.8,4155.7,1.16876]
[1759171209645,0.65685,4155.8,4155.7,1.16876]
[1759171209947,0.98395,4155.8,4155.7,1.16876]
[1759171210546,1.20345,4155.8,4155.7,0.7359]
[1759171210941,1.20348,4155.5,4155.4,1.81864424]
[1759171211141,1.20348,4155.5,4155.1,0.43291]
[1759171211142,1.2035,4155.3,4155.2,0.5213]
[1759171211339,1.2035,4155.3,4155.2,0.7359]
[1759171211536,0.243,4155.6,4155.2,0.7359]
[1759171211737,0.243,4155.6,4155.1,1.29734424]
[1759171211738,0.224,4155.5,4155.4,1.16879]
[1759171211940,0.5511,4155.9,4155.8,0.85945]
[1759171212137,0.5511,4155.9,4155.5,0.1238]
[1759171212138,0.65852661,4156.2,4156.1,0.7359]
[1759171212349,1.7005489,4156.2,4156.1,0.7359]
[1759171216244,1.7005489,4156.2,4156.1,1.16872]
[1759171216646,1.7005489,4156.2,4156.1,0.7359]
[1759171217251,1.7005489,4156.2,4156.1,0.212]
[1759171217453,1.17853,4156.0,4155.9,0.563]
[1759171217642,1.30853,4156.0,4155.9,0.024]
[1759171217844,1.80374026,4156.0,4155.9,0.024]
[1759171221042,1.1786,4155.3,4155.2,1.29734424]
[1759171221248,0.7457,4154.8,4154.6,1.29734424]
[1759171221445,0.7457,4154.8,4154.4,1.50434424]
[1759171221446,0.43299,4154.5,4154.4,1.50434424]
[1759171221647,1.17869,4154.5,4154.4,0.7453]
[1759171222145,0.65603,4154.1,4154.0,0.00234097]
[1759171222352,1.17873,4154.1,4154.0,0.74764097]
[1759171223340,0.4366,4154.1,4154.0,0.87134097]
[1759171223550,0.223,4154.1,4154.0,0.87134097]
[1759171223747,1.4217,4154.4,4154.3,0.4133]
[1759171223954,1.4217,4154.4,4154.3,0.7453]
[1759171225848,1.4217,4154.4,4154.3,0.207]
[1759171226244,0.64428,4154.6,4154.5,0.4473]
[1759171226455,1.20353,4154.2,4154.1,0.7831]
[1759171226843,1.20353,4154.2,4154.0,0.00234097]
[1759171227455,0.86563,4154.1,4154.0,0.00234097]
[1759171227654,1.20353,4154.1,4154.0,0.00234097]
[1759171228158,1.20353,4154.1,4154.0,0.78544097]
[1759171228451,0.2113,4154.2,4154.1,0.5588]
[1759171228656,1.20352,4154.2,4154.1,0.7831]
[1759171229358,0.243,4154.3,4154.0,0.00234097]
[1759171229359,1.20353,4154.1,4154.0,0.00234097]
[1759171229660,1.20353,4154.1,4154.0,0.56114097]
[1759171229855,1.20353,4154.1,4154.0,0.78544097]
[1759171230051,1.20353,4154.1,4154.0,1.35098097]
[1759171230052,0.4326,4154.1,4154.0,1.35098097]
[1759171230254,1.20353,4154.1,4154.0,0.91794097]
[1759171231553,1.20353,4154.1,4154.0,0.00234097]
[1759171234261,1.44653,4154.1,4154.0,0.00234097]
[1759171241669,1.20353,4154.1,4154.0,0.00234097]
[1759171241877,1.20353,4154.1,4154.0,0.78544097]
[1759171242082,1.44653,4154.1,4154.0,0.78544097]
[1759171242378,1.20353,4154.1,4154.0,0.78544097]
[1759171242562,1.20347,4154.6,4154.5,0.9156]
[1759171242870,0.88725,4154.8,4154.7,0.7831]
[1759171243262,0.2113,4154.8,4154.7,0.7831]
[1759171243473,0.64425,4154.8,4154.7,1.21606]
[1759171243963,0.64425,4154.8,4154.7,0.7831]
[1759171244477,1.20345,4154.8,4154.7,0.5588]
[1759171245480,1.20345,4154.8,4154.7,0.7831]
[1759171246267,0.5809,4155.0,4154.8,0.43295]
[1759171246577,1.44643,4155.0,4154.9,0.7831]
[1759171247179,0.86556,4154.7,4154.6,0.3358]
[1759171247378,1.20349,4154.5,4154.4,0.5588]
[1759171247579,1.2035,4154.4,4154.3,0.223]
[1759171247780,1.2035,4154.4,4154.3,0.5588]
[1759171248085,1.2035,4154.4,4154.3,0.223]
[1759171248375,1.20353,4154.1,4154.0,0.78544097]
[1759171249177,1.20353,4154.1,4154.0,1.35098097]
[1759171249368,0.64433,4154.1,4154.0,1.35098097]
[1759171249573,1.44649,4154.5,4154.4,0.7831]
[1759171249782,0.86562,4154.2,4154.1,0.5588]
[1759171250083,1.20352,4154.2,4154.1,0.5588]
[1759171250286,1.20352,4154.2,4154.1,0.7831]
[1759171253674,0.64432,4154.2,4154.1,0.7831]
[1759171254185,1.20352,4154.2,4154.1,0.7831]
[1759171254981,0.86562,4154.2,4154.1,1.21613]
[1759171255286,0.2115,4154.6,4154.5,1.33799]
[1759171255582,0.64447,4154.6,4154.5,1.33799]
[1759171256680,0.95677,4154.6,4154.5,0.905]
[1759171256988,0.95677,4154.6,4154.5,1.33799]
[1759171257178,0.5238,4154.6,4154.5,1.33799]
[1759171257583,0.95677,4154.6,4154.5,1.33799]
[1759171258283,0.5238,4154.6,4154.5,1.33799]
[1759171258486,0.2115,4154.6,4154.5,1.33799]
[1759171258692,0.64447,4154.6,4154.5,1.33799]
[1759171258891,0.64446,4154.8,4154.7,0.86066]
[1759171259086,0.95676,4154.8,4154.7,1.20226]
[1759171259285,1.17056,4154.8,4154.7,1.20226]
[1759171259789,1.17056,4154.8,4154.7,0.7693]
[1759171260391,0.85826,4154.8,4154.7,1.20226]
[1759171261091,0.85826,4154.8,4154.7,0.7693]
[1759171262085,0.43299,4154.5,4154.4,0.5575]
[1759171262288,1.17059,4154.5,4154.4,0.7693]
[1759171262484,0.43297,4154.7,4154.6,0.43297]
[1759171262683,0.43296,4154.8,4154.7,0.86066]
[1759171262895,0.2115,4155.1,4155.0,0.3475]
[1759171263091,0.70627046,4155.1,4155.0,0.99633]
[1759171263289,0.2115,4155.1,4155.0,0.99633]
[1759171263488,1.17052,4155.1,4155.0,0.7693]
[1759171264196,0.64442,4155.1,4155.0,1.33793]
[1759171264490,0.64442,4155.1,4155.0,0.905]
[1759171264700,1.17052,4155.1,4155.0,0.7693]
[1759171265188,1.17052,4155.1,4155.0,0.5575]
[1759171265386,0.85825,4154.8,4154.7,0.99046]
[1759171265590,1.17055,4154.8,4154.7,1.20226]
[1759171266089,0.4253,4154.8,4154.7,1.20226]
[1759171266396,0.2115,4154.8,4154.7,1.20226]
[1759171266895,0.43295,4154.9,4154.8,0.4277]
[1759171267094,0.43295,4154.9,4154.8,0.7693]
[1759171267489,0.43294,4155.1,4155.0,0.56862]
[1759171267695,0.43294,4155.1,4155.0,1.33792]
[1759171268298,0.43288,4155.5,4155.3,0.7693]
[1759171268489,0.43288,4155.5,4155.4,1.20219]
[1759171268692,0.64438,4155.5,4155.4,0.7693]
[1759171268894,0.95668,4155.5,4155.4,0.7693]
[1759171269402,1.17048,4155.5,4155.4,0.7693]
[1759171270302,1.17048,4155.5,4155.4,1.20219]
[1759171270597,1.17048,4155.5,4155.4,0.7693]
[1759171271194,1.17048,4155.5,4155.4,1.20219]
[1759171271397,1.08211,4155.9,4155.6,1.20217]
[1759171271398,0.2115,4155.7,4155.6,1.20217]
[1759171271698,0.24471661,4156.2,4155.8,1.20215]
[1759171271898,0.70682798,4156.1,4156.0,0.905]
[1759171272091,1.45195798,4156.1,4156.0,0.905]
[1759171272287,1.66570614,4156.1,4156.0,0.905]
[1759171272693,1.17043,4156.1,4156.0,0.905]
[1759171273806,0.64432,4156.1,4156.0,0.905]
[1759171276295,0.7673,4156.1,4155.7,0.3161]
[1759171276503,0.437,4155.8,4155.7,0.755]
[1759171276705,0.7654,4155.8,4155.7,0.755]
[1759171277207,0.7654,4155.8,4155.7,1.18786]
[1759171277505,0.86985,4155.8,4155.7,1.18786]
[1759171279010,0.64245,4155.8,4155.7,1.18786]
[1759171279406,0.43285,4155.8,4155.7,1.18786]
[1759171280316,0.64245,4155.8,4155.7,1.18786]
[1759171280905,1.19825,4155.8,4155.7,0.755]
[1759171281101,1.19825,4155.8,4155.7,0.2171]
[1759171281810,0.4329,4155.3,4155.2,0.2411]
[1759171282106,0.4329,4155.3,4155.1,0.43292]
[1759171282107,0.437,4155.3,4154.8,0.74905]
[1759171282305,1.19834,4154.9,4154.8,0.96615]
[1759171282513,0.43293,4155.1,4155.0,0.43293]
[1759171282814,0.2096,4155.1,4155.0,1.32183]
[1759171283112,0.64249,4155.5,4155.4,0.87179]
[1759171283308,0.64249,4155.5,4155.4,1.18789]
[1759171283611,0.97089,4155.5,4155.4,0.755]
[1759171284312,1.19829,4155.5,4155.4,0.755]
[1759171285214,1.19829,4155.5,4155.4,1.18789]
[1759171285415,1.19829,4155.5,4155.4,0.755]
[1759171285603,1.19829,4155.5,4155.4,0.5332]
[1759171285818,0.2096,4155.5,4155.4,1.18159]
[1759171286409,1.21232661,4156.2,4156.1,0.5236]
[1759171286605,1.21232661,4156.2,4155.7,0.43286]
[1759171286606,1.21064,4155.9,4155.8,0.95645]
[1759171286820,1.21064,4155.9,4155.8,1.17195]
[1759171287014,0.7778,4155.9,4155.8,1.17195]
[1759171287717,1.21064,4155.9,4155.8,1.17195]
[1759171289816,0.2257,4155.9,4155.8,1.17195]
[1759171291415,0.65854,4155.9,4155.8,0.7391]
[1759171292018,0.2257,4155.9,4155.8,0.7391]
[1759171292215,0.43282,4156.1,4156.0,0.87]
[1759171292418,0.65852,4156.1,4156.0,0.87]
[1759171292618,0.99552,4156.1,4156.0,0.87]
[1759171292816,1.21062,4156.1,4156.0,0.87]
[1759171293223,1.70587257,4156.1,4156.0,0.87]
[1759171293825,1.36887257,4156.1,4156.0,0.87]
[1759171294026,1.15377257,4156.1,4156.0,0.87]
[1759171294226,1.70587257,4156.1,4156.0,0.87]
[1759171296023,1.70587257,4156.1,4156.0,1.30283]
[1759171296024,1.27305257,4156.1,4156.0,1.30283]
[1759171296221,0.43452661,4156.2,4156.1,0.64342]
[1759171296422,0.43452661,4156.2,4156.1,0.7391]
[1759171296725,1.49257824,4156.2,4156.1,0.7391]
[1759171297024,1.49257824,4156.2,4156.1,1.17192]
[1759171297431,1.15557824,4156.2,4156.1,1.17192]
[1759171297623,1.49257824,4156.2,4156.1,1.17192]
[1759171298428,0.92987824,4156.2,4156.1,1.17192]
[1759171298626,1.49257824,4156.2,4156.1,1.17192]
[1759171298827,1.21232661,4156.2,4156.1,0.7391]
[1759171299020,1.7078549,4156.2,4156.1,0.7391]
[1759171304129,1.2750449,4156.2,4156.1,1.17192]
[1759171304430,0.00171661,4156.2,4156.1,1.17192]
[1759171306334,0.00171661,4156.2,4156.1,2.46822163]
[1759171309433,0.00171661,4156.2,4156.1,1.17192]